fUSD/lending_fUSD_20240730
["ID","MTS","AMOUNT","RATE_DAILY","PERIOD"]
[333692955,1722360388751,1000.0,0.00032931,60]
[333692957,1722360389168,4688.93540533,0.00032931,120]
[333692958,1722360395713,1112.64443258,0.00032931,120]
[333692959,1722360401581,1000.0,0.00032931,30]
[333692961,1722360405339,576.0222733,0.00032931,120]
[333692962,1722360414472,1000.0,0.00032931,30]
[333692963,1722360421127,503.72185611,0.00032931,120]
[333692964,1722360424356,616.94725911,0.00032931,120]
[333692965,1722360424783,1790.94170628,0.00032931,120]
[333692966,1722360425463,319.0497001,0.00032931,120]
[333692967,1722360427250,1000.0,0.00032931,30]
[333692968,1722360440098,1000.0,0.00032931,30]
[333692969,1722360444151,10000.0,0.00032931,30]
[333692970,1722360452974,1000.0,0.00032931,30]
[333692971,1722360453306,1023.923051,0.00032931,30]
[333692972,1722360458431,2322.72120144,0.00032931,120]
[333692973,1722360458952,1307.53620733,0.00032931,120]
[333692974,1722360462865,2117.9060917,0.00032931,120]
[333692975,1722360463918,823.63729052,0.00032931,30]
[333692976,1722360465350,192.0,0.00032931,30]
[333692977,1722360466276,1000.0,0.00032931,60]
[333692978,1722360466326,192.0,0.00032931,30]
[333692979,1722360466494,192.0,0.00032931,30]
[333692980,1722360466824,166.0,0.00032931,30]
[333692982,1722360470271,160.67578607,0.00032931,120]
[333692983,1722360471391,162.93622587,0.00032931,30]
[333692984,1722360472032,199.42794046,0.00032931,120]
[333692985,1722360472375,2953.52990791,0.00032931,120]
[333692986,1722360473245,584.94571077,0.00032931,120]
[333692987,1722360475147,213.21321497,0.00032931,120]
[333692988,1722360475178,263.70653853,0.00032931,30]
[333692989,1722360478632,1000.0,0.00032931,30]
[333692990,1722360479954,1000.0,0.00032931,120]
[333692992,1722360484029,1526.02469695,0.00032931,120]
[333692993,1722360487377,904.25208333,0.00032931,120]
[333692994,1722360487759,313.95612162,0.00032931,120]
[333692995,1722360488643,227.62536324,0.00032931,120]
[333692997,1722360491475,1000.0,0.00032931,30]
[333692998,1722360492942,1000.0,0.00032931,120]
[333692999,1722360493164,578.16555178,0.00032931,120]
[333693000,1722360493649,847.40540458,0.00032931,30]
[333693002,1722360504333,1000.0,0.00032931,30]
[333693003,1722360510821,1013.04078575,0.00032931,30]
[333693004,1722360511757,260.84664418,0.00032931,120]
[333693005,1722360512366,951.10647757,0.00032931,120]
[333693006,1722360513211,2782.24696202,0.00032931,120]
[333693007,1722360515958,1221.35255207,0.00032931,120]
[333693008,1722360516422,1933.30084228,0.00032931,120]
[333693009,1722360516928,618.55785611,0.00032931,30]
[333693010,1722360517185,1000.0,0.00032931,60]
[333693011,1722360518439,1265.29855438,0.00032931,120]
[333693012,1722360518480,2282.02785583,0.00032931,120]
[333693013,1722360518650,292.53213402,0.00032931,30]
[333693014,1722360518684,1894.8028183,0.00032931,60]
[333693015,1722360518720,162.82332674,0.00032931,30]
[333693016,1722360518765,568.20206947,0.00032931,120]
[333693017,1722360518833,848.70342399,0.00032931,120]
[333693018,1722360519027,288.45676452,0.00032931,31]
[333693019,1722360519520,1696.47365872,0.00032931,30]
[333693020,1722360519837,182.51031777,0.00032931,30]
[333693021,1722360520323,199.17324511,0.00032931,30]
[333693022,1722360521075,1402.55601257,0.00032931,30]
[333693023,1722360521213,1000.0,0.00032931,30]
[333693024,1722360521478,626.75415214,0.00032931,30]
[333693025,1722360521573,1000.0,0.00032931,30]
[333693026,1722360521872,1096.82024838,0.00032931,30]
[333693027,1722360521900,874.40320347,0.00032931,30]
[333693028,1722360522103,1000.0,0.00032931,30]
[333693029,1722360522212,3317.18725716,0.00032931,120]
[333693030,1722360522342,1000.0,0.00032931,30]
[333693031,1722360522653,1000.0,0.00032931,30]
[333693032,1722360523062,1000.0,0.00032931,30]
[333693033,1722360523462,1000.0,0.00032931,30]
[333693034,1722360523549,798.98431923,0.00032931,120]
[333693035,1722360523875,1000.0,0.00032931,30]
[333693036,1722360524303,1000.0,0.00032931,30]
[333693037,1722360524663,1000.0,0.00032931,30]
[333693038,1722360524777,154.6592299,0.00032931,30]
[333693039,1722360525001,1000.0,0.00032931,30]
[333693040,1722360525400,1000.0,0.00032931,30]
[333693041,1722360525648,1758.97731333,0.00032931,120]
[333693042,1722360525782,761.15335604,0.00032931,120]
[333693043,1722360526050,1000.0,0.00032931,30]
[333693044,1722360526231,752.60233171,0.00032931,30]
[333693045,1722360526372,3007.70644137,0.00032931,120]
[333693046,1722360526401,1000.0,0.00032931,30]
[333693047,1722360526721,1000.0,0.00032931,30]
[333693048,1722360527379,1000.0,0.00032931,30]
[333693049,1722360528207,1000.0,0.00032931,30]
[333693050,1722360529375,1000.0,0.00032931,30]
[333693051,1722360529464,1000.0,0.00032931,30]
[333693052,1722360529721,1000.0,0.00032931,30]
[333693053,1722360530010,1000.0,0.00032931,30]
[333693054,1722360530139,1000.0,0.00032931,30]
[333693055,1722360530540,1000.0,0.00032931,30]
[333693056,1722360531205,1000.0,0.00032931,30]
[333693057,1722360531530,1000.0,0.00032931,30]
[333693058,1722360531898,1673.300359,0.00032931,30]
[333693059,1722360543013,1000.0,0.00032931,30]
[333693063,1722360555697,1000.0,0.00032931,30]
[333693064,1722360568536,1000.0,0.00032931,60]
[333693065,1722360581378,1000.0,0.00032931,60]
[333693066,1722360594227,1000.0,0.00032931,30]
[333693068,1722360607066,1000.0,0.00032931,60]
[333693074,1722360619902,1000.0,0.00032931,60]
[333693076,1722360632736,1000.0,0.00032931,30]
[333693092,1722360633611,-619.51512464,9.825e-05,2]
[333693094,1722360633622,-451.92492773,9.825e-05,2]
[333693122,1722360638762,-11298.85344763,9.825e-05,2]
[333693123,1722360638772,-216.65,9.855e-05,2]
[333693124,1722360638781,-1000.0,9.871e-05,2]
[333693125,1722360638792,-150.0,9.888e-05,2]
[333693126,1722360638801,-500.0,9.925e-05,3]
[333693127,1722360638990,-23900.0,9.925e-05,2]
[333693128,1722360639001,-2391.09,9.972e-05,2]
[333693129,1722360639011,-171.79,0.00010118,2]
[333693130,1722360639022,-6521.3952,0.00010151,2]
[333693131,1722360639032,-1256.19339315,0.00010251,2]
[333693132,1722360639042,-299.99,0.00010251,2]
[333693133,1722360639051,-295.65477844,0.0001036,2]
[333693134,1722360639061,-1741.56,0.0001036,2]
[333693135,1722360639070,-499.99,0.0001036,2]
[333693136,1722360639080,-150.0,0.00010377,2]
[333693137,1722360639089,-150.0,0.00010378,2]
[333693138,1722360639099,-356.02,0.00010378,2]
[333693139,1722360639111,-425.76,0.00010378,2]
[333693140,1722360639120,-356.02,0.00010378,2]
[333693141,1722360639130,-150.0,0.00010378,2]
[333693142,1722360639139,-150.0,0.00010378,2]
[333693143,1722360639149,-424.4,0.00010378,2]
[333693144,1722360639159,-150.0,0.00010378,2]
[333693145,1722360639168,-356.02,0.00010378,2]
[333693146,1722360639177,-150.0,0.00010378,2]
[333693147,1722360639187,-356.02,0.00010378,2]
[333693148,1722360639196,-150.0,0.00010378,2]
[333693150,1722360639205,-356.02,0.00010378,2]
[333693152,1722360639215,-150.0,0.00010378,2]
[333693154,1722360639223,-354.79,0.00010378,2]
[333693155,1722360639233,-150.0,0.00010378,2]
[333693158,1722360639242,-150.0,0.00010478,2]
[333693159,1722360639252,-150.96,0.00010478,2]
[333693161,1722360639261,-425.76,0.00010478,2]
[333693163,1722360639270,-529.84,0.00010478,2]
[333693165,1722360639280,-150.0,0.00010478,2]
[333693167,1722360639289,-356.02,0.00010478,2]
[333693169,1722360639298,-151.1,0.00010478,2]
[333693171,1722360639307,-150.0,0.00010478,2]
[333693173,1722360639317,-356.02,0.00010478,2]
[333693175,1722360639326,-425.76,0.00010478,2]
[333693177,1722360639336,-150.0,0.00010478,2]
[333693179,1722360639345,-150.0,0.00010478,2]
[333693181,1722360639355,-150.0,0.00010478,2]
[333693183,1722360639367,-425.76,0.00010478,2]
[333693185,1722360639376,-150.0,0.00010478,2]
[333693187,1722360639385,-150.0,0.00010478,2]
[333693189,1722360639394,-352.65,0.00010479,2]
[333693191,1722360639404,-9454.02,0.000107,2]
[333693193,1722360639414,-18155.51543212,0.000108,2]
[333693196,1722360639430,-19807.92,0.000108,2]
[333693198,1722360639441,-360.18505011,0.000108,2]
[333693200,1722360639452,-633.49104557,0.000108,2]
[333693202,1722360639463,-1258.61176236,0.000108,2]
[333693213,1722360639561,-14.87754489,0.000108,2]
[333693324,1722360640405,-1058.9027694,0.000108,2]
[333693329,1722360640416,-329.9888263,0.000108,2]
[333693359,1722360640581,-19943.26226925,0.000108,2]
[333693362,1722360640590,-6331.7544,0.000108,2]
[333693365,1722360640600,-10023.6389,0.000108,2]
[333693368,1722360640610,-2418.0797,0.000108,2]
[333693371,1722360640620,-300.0,0.000108,2]
[333693374,1722360640629,-1611.42412487,0.0001089,2]
[333693377,1722360640639,-3028.0524,0.000109,2]
[333693380,1722360640649,-39063.7926,0.000109,2]
[333693383,1722360640658,-100000.0,0.000109,2]
[333693386,1722360640667,-1287.0312,0.000109,2]
[333693389,1722360640676,-500.0,0.000109,2]
[333693392,1722360640686,-45876.1299,0.000109,2]
[333693395,1722360640695,-3520.9278,0.000109,2]
[333693397,1722360640705,-4364.142956,0.000109,2]
[333693399,1722360640714,-5000.0,0.000109,2]
[333693401,1722360640724,-2324.21109593,0.000109,2]
[333693404,1722360640733,-1000.0,0.000109,2]
[333693407,1722360640743,-4705.7756,0.000109,2]
[333693410,1722360640752,-120487.0,0.000109,2]
[333693413,1722360640762,-1000.0,0.000109,2]
[333693416,1722360640772,-875.46856231,0.000109,2]
[333693419,1722360640781,-1046.69554442,0.000109,2]
[333693421,1722360640790,-368.3086014,0.000109,2]
[333693423,1722360640800,-2937.08085826,0.000109,2]
[333693424,1722360640811,-611.2876396,0.000109,2]
[333693425,1722360640820,-500.0,0.00010937,2]
[333693426,1722360640829,-500.0,0.00010946,2]
[333693427,1722360640840,-500.0,0.00010955,2]
[333693428,1722360640849,-200.0,0.00010959,2]
[333693429,1722360640858,-250.0,0.00010959,2]
[333693430,1722360640869,-314.42,0.00010959,2]
[333693431,1722360640878,-500.0,0.00010964,2]
[333693432,1722360640888,-500.0,0.00010973,2]
[333693433,1722360640897,-178.93,0.0001098,2]
[333693434,1722360640907,-500.0,0.00010981,2]
[333693435,1722360640916,-3867.0,0.00010986,2]
[333693436,1722360640926,-509.04994308,0.00010987,2]
[333693437,1722360640937,-67266.10132586,0.0001099,7]
[333693438,1722360640951,-4894.19749604,0.0001099,7]
[333693647,1722360643384,-13048.07027466,0.0001099,7]
[333693648,1722360643809,-5004.33905997,0.0001099,7]
[333693649,1722360643820,-3563.9999998,0.0001099,7]
[333693650,1722360645569,1000.0,0.00032931,120]
[333693655,1722360646300,-1386.47366915,0.0001089,2]
[333693656,1722360646422,-273.47633085,0.0001089,2]
[333693657,1722360646431,-726.52366915,0.0001099,7]
[333693658,1722360646602,-250.20375,0.0001099,7]
[333693659,1722360646614,-1213.46706342,0.0001099,7]
[333693660,1722360658410,1000.0,0.00032931,60]
[333693662,1722360668931,150.0,0.00032931,30]
[333693663,1722360671252,1000.0,0.00032931,120]
[333693664,1722360684097,1000.0,0.00033002,30]
[333693665,1722360696968,1000.0,0.00033002,30]
[333693666,1722360709819,1000.0,0.00033002,60]
[333693668,1722360722666,1000.0,0.00033002,30]
[333693669,1722360736521,1039.45,0.00033002,60]
[333693670,1722360762971,2000.0,0.00033002,30]
[333693671,1722360763417,2000.0,0.00033002,30]
[333693672,1722360763897,2000.0,0.00033002,30]
[333693673,1722360764363,950.5,0.00033002,30]
[333693674,1722360764943,2000.0,0.00033002,30]
[333693675,1722360765401,2000.0,0.00033002,30]
[333693676,1722360765887,2000.0,0.00033002,30]
[333693677,1722360766305,2000.0,0.00033002,30]
[333693678,1722360766785,2000.0,0.00033002,30]
[333693679,1722360767216,983.5,0.00033002,30]
[333693680,1722360768370,2000.0,0.00033002,30]
[333693681,1722360769374,2000.0,0.00033002,30]
[333693682,1722360769429,2000.0,0.00033002,30]
[333693683,1722360769857,2000.0,0.00033002,30]
[333693684,1722360770295,2000.0,0.00033002,30]
[333693685,1722360771009,983.5,0.00033002,30]
[333693688,1722360805908,372.43,8.219e-05,2]
[333693692,1722360869456,987.0,0.00033002,30]
[333693693,1722360875055,5000.0,0.00033002,120]
[333693694,1722360875712,3496.93536361,8.219e-05,2]
[333693695,1722360875883,797.30336427,8.219e-05,2]
[333693696,1722360878060,363.62565954,8.219e-05,2]
[333693697,1722360879170,155.0,8.219e-05,2]
[333693698,1722360886390,485.05125098,8.219e-05,2]
[333693699,1722360888507,305.0,8.219e-05,2]
[333693700,1722360890777,1091.70786771,8.219e-05,2]
[333693701,1722360909274,1530.01818463,8.219e-05,2]
[333693702,1722360910255,1073.31463398,8.219e-05,2]
[333693703,1722360910277,2708.99243223,8.219e-05,2]
[333693706,1722360949355,349.0,0.00033002,30]
[333693707,1722360949800,1748.0,0.00033002,30]
[333693708,1722360950235,1399.0,0.00033002,30]
[333693711,1722361049790,160.0,0.00033002,30]
[333693712,1722361064261,192.0,0.00033002,30]
[333693713,1722361064592,192.0,0.00033002,30]
[333693714,1722361114439,1000.0,0.00033002,30]
[333693715,1722361115088,1000.0,0.00033002,30]
[333693716,1722361115674,1000.0,0.00033002,30]
[333693717,1722361116886,1000.0,0.00033002,30]
[333693718,1722361117392,1000.0,0.00033002,30]
[333693719,1722361117992,1000.0,0.00033002,30]
[333693720,1722361119094,1000.0,0.00033002,30]
[333693721,1722361120144,1000.0,0.00033002,30]
[333693722,1722361120828,1000.0,0.00033002,30]
[333693723,1722361121430,1000.0,0.00033002,30]
[333693724,1722361122144,1000.0,0.00033002,30]
[333693725,1722361122791,1000.0,0.00033002,30]
[333693726,1722361123557,1000.0,0.00033002,30]
[333693727,1722361124321,1000.0,0.00033002,30]
[333693728,1722361125313,1000.0,0.00033002,30]
[333693729,1722361126340,1000.0,0.00033002,30]
[333693730,1722361127053,1000.0,0.00033002,30]
[333693731,1722361128217,1570.944642,0.00033002,30]
[333693734,1722361295892,169.11,8.219e-05,2]
[333693735,1722361315862,353.8,8.219e-05,2]
[333693739,1722361367283,150.0,0.00033002,30]
[333693740,1722361368162,2000.0,0.00033002,30]
[333693741,1722361368629,2000.0,0.00033002,30]
[333693742,1722361369414,2000.0,0.00033002,30]
[333693743,1722361370174,2000.0,0.00033002,30]
[333693744,1722361370680,2000.0,0.00033002,30]
[333693746,1722361461723,987.0,0.00033002,30]
[333693747,1722361480774,572.6551782,0.00033002,30]
[333693748,1722361483103,-600000.0,0.0001099,7]
[333693749,1722361491332,-108852.3890908,0.0001099,7]
[333693750,1722361491443,-9350.0,0.00012463,7]
[333693751,1722361491468,-150.0,0.00012535,5]
[333693752,1722361491494,-233.31918078,0.00012535,5]
[333693753,1722361491518,-84398.89454269,0.00012981,7]
[333693754,1722361491543,-217311.76065883,0.00012981,7]
[333693755,1722361491569,-3281.20195744,0.00013133,5]
[333693756,1722361491595,-3800.0,0.000133,6]
[333693757,1722361491621,-4480.0,0.00013463,7]
[333693758,1722361491655,-2022.17712814,0.00014,5]
[333693759,1722361491683,-3045.0,0.00014463,7]
[333693760,1722361491708,-1166.4107286,0.0001475,7]
[333693761,1722361491735,-3000.0,0.00014897,7]
[333693762,1722361491760,-574.54,0.000149,5]
[333693763,1722361491787,-19994.36001684,0.00015,7]
[333693764,1722361491811,-5010.0,0.00015,7]
[333693768,1722361550831,349.0,0.00033002,30]
[333693769,1722361551339,1748.0,0.00033002,30]
[333693770,1722361551922,1399.0,0.00033002,30]
[333693771,1722361569065,400.0,0.00033002,30]
[333693772,1722361569484,400.0,0.00033002,30]
[333693773,1722361569941,679.107538,0.00033002,30]
[333693774,1722361575695,500.0,0.00033002,60]
[333693775,1722361611285,3461.0,0.00033002,120]
[333693777,1722361665049,192.0,0.00033002,30]
[333693778,1722361666260,192.0,0.00033002,30]
[333693779,1722361666326,192.0,0.00033002,30]
[333693780,1722361667089,166.0,0.00033002,30]
[333693781,1722361681706,815.15052773,0.00033002,120]
[333693782,1722361700477,-300.0,9.9e-05,3]
[333693783,1722361700504,-700.0,0.0001,3]
[333693784,1722361700528,-1100.0,0.000101,3]
[333693785,1722361700553,-1500.0,0.000102,3]
[333693786,1722361700580,-1800.0,0.000103,3]
[333693787,1722361700608,-300.0,0.000104,3]
[333693788,1722361700632,-300.0,0.000105,3]
[333693789,1722361700656,-300.0,0.000106,3]
[333693790,1722361700682,-300.0,0.000107,3]
[333693791,1722361700708,-986.0,0.000108,3]
[333693792,1722361700970,-3531.0,0.00012,3]
[333693793,1722361701003,-625917.982047,0.000138,3]
[333693794,1722361701028,-362965.017953,0.000139,3]
[333693795,1722361705471,-262960.199615,0.000139,3]
[333693796,1722361705499,-101725.41666378,0.00014,4]
[333693797,1722361705525,-164144.97454498,0.00014,4]
[333693798,1722361705550,-9161.12419834,0.00014,4]
[333693799,1722361705577,-161007.99999985,0.00014,4]
[333693800,1722361705608,-3000.0,0.00014884,4]
[333693801,1722361705636,-500.0,0.00015,4]
[333693802,1722361705663,-12545.72247275,0.00015,7]
[333693803,1722361705689,-430.0,0.000155,3]
[333693804,1722361705714,-430.0,0.00016,3]
[333693805,1722361705771,1013.04078575,0.00033002,30]
[333693806,1722361711055,1000.0,0.00033002,60]
[333693807,1722361722763,1000.0,0.00033002,30]
[333693808,1722361723350,1000.0,0.00033002,30]
[333693809,1722361723906,1000.0,0.00033002,60]
[333693810,1722361724722,1000.0,0.00033002,30]
[333693811,1722361725148,1000.0,0.00033002,30]
[333693812,1722361725625,1000.0,0.00033002,30]
[333693813,1722361726059,1000.0,0.00033002,30]
[333693814,1722361726702,1000.0,0.00033002,30]
[333693815,1722361727187,1000.0,0.00033002,30]
[333693816,1722361728516,1000.0,0.00033002,30]
[333693817,1722361728673,1000.0,0.00033002,30]
[333693818,1722361729332,1000.0,0.00033002,30]
[333693819,1722361729764,1000.0,0.00033002,30]
[333693820,1722361730213,1000.0,0.00033002,30]
[333693821,1722361730630,1000.0,0.00033002,30]
[333693822,1722361731031,1000.0,0.00033002,30]
[333693823,1722361731556,1000.0,0.00033002,30]
[333693824,1722361732019,1000.0,0.00033002,30]
[333693825,1722361732455,1000.0,0.00033137,30]
[333693826,1722361732786,1000.0,0.00033137,30]
[333693827,1722361733288,1000.0,0.00033137,30]
[333693828,1722361733871,1000.0,0.00033137,30]
[333693829,1722361735513,1000.0,0.00033137,30]
[333693830,1722361735984,1000.0,0.00033137,30]
[333693831,1722361736399,1000.0,0.00033137,30]
[333693832,1722361736801,1000.0,0.00033137,60]
[333693833,1722361736855,1673.300359,0.00033137,30]
[333693834,1722361749651,1000.0,0.00033137,30]
[333693835,1722361755541,5000.0,0.00033137,120]
[333693836,1722361762497,1000.0,0.00033137,30]
[333693844,1722361775337,1000.0,0.00033137,60]
[333693846,1722361788276,1000.0,0.00033137,60]
[333693852,1722361801053,1000.0,0.00033137,60]
[333693853,1722361802690,799.77321309,0.00033137,30]
[333693854,1722361814054,1000.0,0.00033137,30]
[333693855,1722361821014,336.11,8.219e-05,2]
[333693856,1722361826901,1000.0,0.00033137,30]
[333693868,1722361831517,-1750.0,9.478e-05,2]
[333693870,1722361833917,-3082.03617125,9.478e-05,2]
[333693871,1722361833929,-5167.96382875,9.478e-05,2]
[333693872,1722361833939,-300.0,9.482e-05,2]
[333693873,1722361833948,-427.19,9.511e-05,2]
[333693874,1722361833957,-98.82082725,9.533e-05,2]
[333693875,1722361833968,-1585.352775,9.533e-05,2]
[333693876,1722361833980,-315.82639775,9.533e-05,2]
[333693877,1722361833989,-294.03704887,9.541e-05,2]
[333693879,1722361837461,-604.09295113,9.541e-05,2]
[333693880,1722361837471,-1519.84519713,9.546e-05,2]
[333693881,1722361837487,-282.48007,9.546e-05,2]
[333693882,1722361837498,-1083.43000002,9.546e-05,2]
[333693883,1722361837519,-1274.16252023,9.546e-05,2]
[333693884,1722361837531,-2050.00804003,9.546e-05,2]
[333693885,1722361837543,-3126.70417259,9.546e-05,2]
[333693886,1722361837552,-753.43222386,9.568e-05,2]
[333693887,1722361837569,-46.56777614,9.568e-05,2]
[333693888,1722361837578,-200.0,9.571e-05,2]
[333693889,1722361837587,-96.49975999,9.574e-05,2]
[333693890,1722361837598,-1273.04144729,9.574e-05,2]
[333693891,1722361837669,-605.87879272,9.574e-05,2]
[333693892,1722361837679,-150.0,9.671e-05,2]
[333693893,1722361837688,-171.79,9.673e-05,2]
[333693894,1722361837698,-150.99,9.923e-05,2]
[333693895,1722361837710,-767.98672599,0.0001,2]
[333693896,1722361837771,-482.01327401,0.0001,2]
[333693897,1722361837780,-18.52805843,0.00010055,2]
[333693898,1722361837792,-281.53194157,0.00010055,2]
[333693899,1722361837801,-170.62,0.0001011,2]
[333693900,1722361837810,-499.99,0.000102,2]
[333693901,1722361837820,-420.42,0.00010241,2]
[333693902,1722361837829,-483.97,0.00010241,2]
[333693903,1722361838012,-420.42,0.00010241,2]
[333693904,1722361838021,-420.42,0.00010241,2]
[333693905,1722361838030,-420.42,0.00010241,2]
[333693906,1722361838039,-420.0,0.0001043,2]
[333693907,1722361838049,-919.74805843,0.0001045,2]
[333693913,1722361839622,-867.92362157,0.0001045,2]
[333693914,1722361839632,-336.11,0.00010452,2]
[333693915,1722361839641,-150.0,0.000107,2]
[333693916,1722361839651,-500.0,0.00010709,2]
[333693917,1722361839660,-500.0,0.00010717,2]
[333693918,1722361839670,-500.0,0.00010726,2]
[333693919,1722361839679,-500.0,0.00010735,2]
[333693920,1722361839688,-500.0,0.00010744,2]
[333693921,1722361839697,-500.0,0.00010753,2]
[333693922,1722361839708,-500.0,0.00010761,2]
[333693923,1722361839717,-800.0,0.00010764,2]
[333693924,1722361839726,-200.0,0.00010767,2]
[333693925,1722361839736,-25600.0,0.00010768,2]
[333693926,1722361839747,-500.0,0.0001077,2]
[333693927,1722361839757,-500.0,0.00010779,2]
[333693928,1722361839766,-3452.03121324,0.0001078,2]
[333693929,1722361839776,-500.0,0.00010788,2]
[333693930,1722361839785,-73279.8279,0.0001079,2]
[333693931,1722361839794,-500.0,0.00010797,2]
[333693932,1722361839804,-100000.0,0.000108,2]
[333693933,1722361839813,-500.0,0.00010805,2]
[333693934,1722361839823,-500.0,0.00010814,2]
[333693935,1722361839832,-500.0,0.00010823,2]
[333693936,1722361839841,-500.0,0.00010832,2]
[333693937,1722361839851,-500.0,0.00010841,2]
[333693938,1722361839861,-626.66240384,0.00010847,2]
[333693939,1722361839870,-500.0,0.00010849,2]
[333693940,1722361839879,-156.66560096,0.00010851,2]
[333693941,1722361839889,-626.66240384,0.00010857,2]
[333693942,1722361839899,-500.0,0.00010858,2]
[333693943,1722361839909,-626.66240384,0.00010865,2]
[333693944,1722361839918,-435.50459399,0.00010866,2]
[333693945,1722361839927,-500.0,0.00010867,2]
[333693946,1722361839937,-156.66560096,0.00010869,2]
[333693947,1722361839946,-500.0,0.00010876,2]
[333693948,1722361839958,-435.50459399,0.00010881,2]
[333693949,1722361839967,-500.0,0.00010885,2]
[333693950,1722361839976,-435.50459399,0.00010885,2]
[333693951,1722361839985,-156.66560096,0.00010889,2]
[333693952,1722361839995,-112047.91089936,0.0001089,2]
[333693953,1722361840006,-7109.92850735,0.0001089,2]
[333693954,1722361840070,1000.0,0.00033137,120]
[333693955,1722361840099,-1430.4195945,0.0001089,2]
[333693961,1722361842635,-7524.82359495,0.0001089,2]
[333693964,1722361843202,-2765.28569086,0.0001089,2]
[333693995,1722361845623,-506.79704853,0.0001089,2]
[333693996,1722361845635,-2348.53293678,0.0001089,2]
[333693997,1722361845652,-3279.0,0.0001089,2]
[333693998,1722361845840,-2123.80937913,0.0001089,2]
[333693999,1722361845851,-992.4,0.0001089,2]
[333694000,1722361845861,-1319.89720312,0.0001089,2]
[333694001,1722361845965,-1980.37111547,0.0001089,2]
[333694005,1722361852604,1000.0,0.00033137,60]
[333694008,1722361865442,1000.0,0.00033137,30]
[333694009,1722361869852,150.0,0.00033137,30]
[333694010,1722361878292,1000.0,0.00033137,30]
[333694011,1722361891136,1000.0,0.00033137,30]
[333694012,1722361903968,1000.0,0.00033137,60]
[333694013,1722361916853,1000.0,0.00033137,60]
[333694014,1722361929708,1000.0,0.00033137,30]
[333694015,1722361942559,1000.0,0.00033137,60]
[333694016,1722361947138,160.0,0.00033137,30]
[333694017,1722361955389,1000.0,0.00033137,60]
[333694018,1722361964270,2000.0,0.00033137,30]
[333694019,1722361964674,2000.0,0.00033137,30]
[333694020,1722361965068,2000.0,0.00033137,30]
[333694021,1722361965459,950.5,0.00033137,30]
[333694022,1722361966132,2000.0,0.00033137,30]
[333694023,1722361966835,2000.0,0.00033137,30]
[333694024,1722361968198,2000.0,0.00033137,30]
[333694025,1722361968338,2000.0,0.00033137,30]
[333694026,1722361968386,1000.0,0.00033137,60]
[333694027,1722361968522,2000.0,0.00033137,30]
[333694028,1722361968831,983.5,0.00033137,30]
[333694029,1722361969535,2000.0,0.00033137,30]
[333694030,1722361969944,2000.0,0.00033137,30]
[333694031,1722361970395,2000.0,0.00033137,30]
[333694032,1722361971228,2000.0,0.00033137,30]
[333694033,1722361971624,2000.0,0.00033137,30]
[333694034,1722361972044,983.5,0.00033137,30]
[333694035,1722361975063,2000.0,0.00033137,30]
[333694036,1722361976096,2000.0,0.00033137,30]
[333694037,1722361976477,2000.0,0.00033137,30]
[333694038,1722361976871,2000.0,0.00033137,30]
[333694039,1722361977290,2000.0,0.00033137,30]
[333694040,1722361978178,983.5,0.00033137,30]